lending/lending_fUSD_20240110
["ID","MTS","AMOUNT","RATE_DAILY","PERIOD"]
[311144134,1704930645639,-1635.48,0.0003863,4]
[311144136,1704930645648,-1042.56,0.0003863,4]
[311144138,1704930645658,-157.0,0.0003863,14]
[311144140,1704930645667,-150.38353361,0.00038674,7]
[311144142,1704930645677,-150.99155862,0.00038699,2]
[311144144,1704930645686,-217.0,0.0003873,2]
[311144146,1704930645700,-176.46,0.00038758,2]
[311144149,1704930645710,-4898.19478324,0.00038786,2]
[311144152,1704930645718,-9667.43606982,0.00038786,2]
[311144155,1704930645728,-150.0,0.00038803,2]
[311144157,1704930645737,-20000.0,0.00038804,2]
[311144159,1704930645746,-1159.46,0.00038805,10]
[311144161,1704930645755,-150.38353361,0.00038815,7]
[311144163,1704930645765,-153.84,0.00038857,2]
[311144165,1704930645775,-500.0,0.00038865,2]
[311144167,1704930645784,-910.57,0.00038894,10]
[311144169,1704930645793,-1000.0,0.00038904,2]
[311144171,1704930645803,-500.0,0.00038904,4]
[311144173,1704930645813,-500.0,0.00038904,4]
[311144175,1704930645822,-500.0,0.00038904,4]
[311144177,1704930645831,-500.0,0.00038904,4]
[311144179,1704930645840,-500.0,0.00038904,4]
[311144181,1704930645849,-500.0,0.00038904,4]
[311144183,1704930645858,-500.0,0.00038904,7]
[311144185,1704930645867,-470.4,0.00038904,4]
[311144187,1704930645877,-500.0,0.00038904,4]
[311144189,1704930645886,-500.0,0.00038904,2]
[311144191,1704930645895,-500.0,0.00038904,4]
[311144193,1704930645904,-225.34302654,0.00038904,4]
[311144195,1704930645914,-500.0,0.00038904,4]
[311144197,1704930645923,-685.92,0.00038904,4]
[311144199,1704930645933,-500.0,0.00038904,2]
[311144201,1704930645942,-500.0,0.00038904,4]
[311144203,1704930645956,-500.0,0.00038904,4]
[311144205,1704930645965,-500.0,0.00038904,4]
[311144207,1704930645975,-500.0,0.00038904,4]
[311144209,1704930645984,-500.0,0.00038904,4]
[311144211,1704930645994,-500.0,0.00038904,4]
[311144213,1704930646003,-688.82,0.00038904,4]
[311144215,1704930646012,-721.23,0.00038904,4]
[311144217,1704930646022,-524.91,0.00038904,2]
[311144219,1704930646031,-500.0,0.00038904,4]
[311144221,1704930646040,-500.0,0.00038904,4]
[311144223,1704930646050,-525.96,0.00038904,4]
[311144225,1704930646058,-500.0,0.00038904,4]
[311144227,1704930646067,-500.0,0.00038904,4]
[311144229,1704930646077,-500.0,0.00038904,4]
[311144231,1704930646086,-699.67,0.00038904,4]
[311144233,1704930646096,-500.0,0.00038904,4]
[311144235,1704930646105,-378.01705671,0.00038904,4]
[311144237,1704930646114,-175.65,0.00038904,4]
[311144239,1704930646126,-554.25,0.00038904,4]
[311144242,1704930646136,-500.0,0.00038904,4]
[311144244,1704930646145,-500.0,0.00038904,4]
[311144246,1704930646155,-500.0,0.00038904,4]
[311144248,1704930646165,-557.24,0.00038904,4]
[311144250,1704930646175,-544.66,0.00038904,4]
[311144252,1704930646184,-500.0,0.00038904,4]
[311144253,1704930646200,-442.28687715,0.00038904,4]
[311144256,1704930646210,-500.0,0.00038904,4]
[311144258,1704930646219,-500.0,0.00038904,4]
[311144260,1704930646237,-500.0,0.00038904,4]
[311144262,1704930646246,-1352.01,0.00038904,4]
[311144264,1704930646257,-500.0,0.00038904,4]
[311144266,1704930646269,-500.0,0.00038904,4]
[311144268,1704930646279,-980.16,0.00038904,4]
[311144270,1704930646289,-500.0,0.00038904,4]
[311144272,1704930646299,-500.0,0.00038904,4]
[311144274,1704930646309,-500.0,0.00038904,4]
[311144276,1704930646318,-500.0,0.00038904,4]
[311144278,1704930646331,-500.0,0.00038904,4]
[311144280,1704930646343,-500.0,0.00038904,4]
[311144282,1704930646352,-500.0,0.00038904,4]
[311144284,1704930646362,-500.0,0.00038904,4]
[311144286,1704930646371,-230.24,0.00038904,4]
[311144288,1704930646382,-1117.31,0.00038904,4]
[311144290,1704930646391,-500.0,0.00038904,4]
[311144292,1704930646400,-758.69,0.00038904,4]
[311144294,1704930646409,-507.48,0.00038904,4]
[311144296,1704930646419,-506.09,0.00038904,4]
[311144298,1704930646428,-532.71,0.00038904,4]
[311144300,1704930646438,-746.81,0.00038904,4]
[311144302,1704930646451,-500.0,0.00038904,4]
[311144304,1704930646460,-500.0,0.00038904,4]
[311144306,1704930646469,-584.0,0.00038904,4]
[311144309,1704930646478,-818.52,0.00038904,4]
[311144310,1704930646487,-500.0,0.00038904,4]
[311144313,1704930646497,-500.0,0.00038904,4]
[311144315,1704930646507,-544.62,0.00038904,4]
[311144316,1704930646516,-701.9,0.00038904,4]
[311144318,1704930646525,-1156.27,0.00038904,4]
[311144321,1704930646535,-500.0,0.00038904,4]
[311144322,1704930646544,-299.25160155,0.00038904,4]
[311144325,1704930646553,-500.0,0.00038904,4]
[311144327,1704930646563,-969.46,0.00038904,4]
[311144328,1704930646572,-1923.82,0.00038904,4]
[311144331,1704930646582,-535.15,0.00038904,4]
[311144333,1704930646591,-500.0,0.00038904,4]
[311144335,1704930646601,-500.0,0.00038904,4]
[311144337,1704930646610,-500.0,0.00038904,4]
[311144339,1704930646619,-500.0,0.00038904,4]
[311144341,1704930646628,-500.0,0.00038904,4]
[311144343,1704930646637,-522.94,0.00038904,4]
[311144345,1704930646646,-500.0,0.00038904,4]
[311144347,1704930646656,-1192.59,0.00038904,4]
[311144349,1704930646665,-500.0,0.00038904,4]
[311144351,1704930646674,-500.0,0.00038904,4]
[311144353,1704930646683,-669.83,0.00038904,4]
[311144355,1704930646695,-500.0,0.00038904,4]
[311144357,1704930646704,-236.2,0.00038904,4]
[311144359,1704930646713,-500.0,0.00038904,4]
[311144361,1704930646722,-439.68,0.00038904,4]
[311144363,1704930646731,-326.11,0.00038904,4]
[311144365,1704930646740,-500.0,0.00038904,4]
[311144367,1704930646749,-695.51,0.00038904,4]
[311144369,1704930646758,-500.0,0.00038904,4]
[311144371,1704930646768,-500.0,0.00038904,4]
[311144373,1704930646776,-500.0,0.00038904,5]
[311144375,1704930646786,-500.0,0.00038904,4]
[311144377,1704930646795,-500.0,0.00038904,4]
[311144379,1704930646804,-500.0,0.00038904,4]
[311144381,1704930646816,-668.02,0.00038904,4]
[311144383,1704930646826,-500.0,0.00038904,4]
[311144385,1704930646835,-552.24,0.00038904,4]
[311144387,1704930646844,-1038.02,0.00038904,4]
[311144389,1704930646854,-1139.63,0.00038904,4]
[311144391,1704930646863,-738.06,0.00038904,4]
[311144393,1704930646873,-1635.48,0.00038904,4]
[311144395,1704930646883,-1042.56,0.00038904,4]
[311144397,1704930646893,-2841.51931985,0.00038908,2]
[311144399,1704930646903,-3301.085,0.00038908,2]
[311144401,1704930646913,-150.38353361,0.00038924,7]
[311144403,1704930646922,-281.65321815,0.0003898,2]
[311144405,1704930646932,-482.42000636,0.00038999,2]
[311144407,1704930646941,-472.34842252,0.00038999,2]
[311144409,1704930646954,-206.7514313,0.00038999,7]
[311144410,1704930646963,-100000.0,0.00039,6]
[311144411,1704930646973,-152.0,0.00039,2]
[311144412,1704930646984,-152.0,0.00039,2]
[311144413,1704930646993,-1427.01104071,0.00039,2]
[311144414,1704930647004,-168.0,0.00039,2]
[311144415,1704930647014,-272.97796966,0.00039,2]
[311144416,1704930647024,-152.0,0.00039031,3]
[311144417,1704930647033,-152.97219112,0.00039033,7]
[311144418,1704930647043,-2583.43393757,0.00039058,2]
[311144420,1704930647053,-176.46,0.00039101,2]
[311144422,1704930647062,-150.99155862,0.00039148,3]
[311144424,1704930647071,-2310.5951701,0.00039166,2]
[311144426,1704930647081,-1000.0,0.00039178,2]
[311144428,1704930647091,-250.5796417,0.00039178,4]
[311144431,1704930647100,-577.49,0.00039178,4]
[311144433,1704930647110,-270.39,0.00039178,4]
[311144435,1704930647119,-500.0,0.00039178,4]
[311144437,1704930647127,-500.0,0.00039178,4]
[311144439,1704930647137,-500.0,0.00039178,4]
[311144441,1704930647146,-500.0,0.00039178,7]
[311144443,1704930647156,-500.0,0.00039178,4]
[311144445,1704930647165,-500.0,0.00039178,2]
[311144447,1704930647174,-500.0,0.00039178,4]
[311144449,1704930647183,-500.0,0.00039178,4]
[311144451,1704930647194,-685.92,0.00039178,4]
[311144453,1704930647204,-500.0,0.00039178,2]
[311144455,1704930647213,-500.0,0.00039178,4]
[311144457,1704930647222,-500.0,0.00039178,4]
[311144459,1704930647231,-500.0,0.00039178,4]
[311144461,1704930647240,-500.0,0.00039178,4]
[311144463,1704930647250,-500.0,0.00039178,4]
[311144465,1704930647259,-500.0,0.00039178,4]
[311144467,1704930647268,-688.82,0.00039178,4]
[311144469,1704930647277,-721.23,0.00039178,4]
[311144470,1704930647285,-524.91,0.00039178,2]
[311144473,1704930647295,-500.0,0.00039178,4]
[311144475,1704930647304,-500.0,0.00039178,4]
[311144477,1704930647313,-500.0,0.00039178,4]
[311144479,1704930647323,-500.0,0.00039178,4]
[311144481,1704930647332,-699.67,0.00039178,4]
[311144483,1704930647341,-500.0,0.00039178,4]
[311144485,1704930647350,-500.0,0.00039178,4]
[311144487,1704930647359,-554.25,0.00039178,4]
[311144489,1704930647368,-500.0,0.00039178,4]
[311144491,1704930647378,-500.0,0.00039178,4]
[311144493,1704930647387,-500.0,0.00039178,4]
[311144495,1704930647396,-557.24,0.00039178,4]
[311144497,1704930647404,-544.66,0.00039178,4]
[311144499,1704930647414,-500.0,0.00039178,4]
[311144501,1704930647423,-500.0,0.00039178,4]
[311144503,1704930647432,-500.0,0.00039178,4]
[311144505,1704930647442,-500.0,0.00039178,4]
[311144507,1704930647453,-1352.01,0.00039178,4]
[311144509,1704930647462,-500.0,0.00039178,4]
[311144511,1704930647471,-500.0,0.00039178,4]
[311144513,1704930647480,-980.16,0.00039178,4]
[311144515,1704930647489,-500.0,0.00039178,4]
[311144517,1704930647498,-500.0,0.00039178,4]
[311144519,1704930647507,-450.33,0.00039178,4]
[311144521,1704930647517,-500.0,0.00039178,4]
[311144523,1704930647526,-500.0,0.00039178,4]
[311144525,1704930647535,-500.0,0.00039178,4]
[311144527,1704930647544,-500.0,0.00039178,4]
[311144529,1704930647553,-1117.31,0.00039178,4]
[311144531,1704930647562,-500.0,0.00039178,4]
[311144533,1704930647571,-758.69,0.00039178,4]
[311144535,1704930647580,-507.48,0.00039178,4]
[311144537,1704930647589,-506.09,0.00039178,4]
[311144539,1704930647598,-532.71,0.00039178,4]
[311144541,1704930647608,-746.81,0.00039178,4]
[311144543,1704930647617,-500.0,0.00039178,4]
[311144545,1704930647626,-500.0,0.00039178,4]
[311144547,1704930647636,-584.0,0.00039178,4]
[311144549,1704930647645,-818.52,0.00039178,4]
[311144551,1704930647654,-500.0,0.00039178,4]
[311144553,1704930647663,-500.0,0.00039178,4]
[311144555,1704930647672,-544.62,0.00039178,4]
[311144557,1704930647683,-701.9,0.00039178,4]
[311144559,1704930647693,-1156.27,0.00039178,4]
[311144561,1704930647704,-500.0,0.00039178,4]
[311144563,1704930647713,-500.0,0.00039178,4]
[311144565,1704930647723,-969.46,0.00039178,4]
[311144567,1704930647732,-1923.82,0.00039178,4]
[311144570,1704930647742,-535.15,0.00039178,4]
[311144571,1704930647752,-500.0,0.00039178,4]
[311144572,1704930647761,-500.0,0.00039178,4]
[311144573,1704930647771,-159.94318315,0.00039178,4]
[311144574,1704930647780,-500.0,0.00039178,4]
[311144575,1704930647790,-500.0,0.00039178,4]
[311144576,1704930647799,-522.94,0.00039178,4]
[311144577,1704930647808,-500.0,0.00039178,4]
[311144578,1704930647820,-1192.59,0.00039178,4]
[311144579,1704930647830,-500.0,0.00039178,4]
[311144580,1704930647839,-630.24,0.00039178,4]
[311144581,1704930647848,-669.83,0.00039178,4]
[311144583,1704930647858,-500.0,0.00039178,4]
[311144585,1704930647867,-500.0,0.00039178,4]
[311144587,1704930647877,-500.0,0.00039178,4]
[311144589,1704930647887,-695.51,0.00039178,4]
[311144590,1704930647896,-500.0,0.00039178,4]
[311144591,1704930647906,-500.0,0.00039178,4]
[311144592,1704930647915,-500.0,0.00039178,5]
[311144593,1704930647925,-500.0,0.00039178,4]
[311144594,1704930647935,-500.0,0.00039178,4]
[311144595,1704930647950,-500.0,0.00039178,4]
[311144596,1704930647961,-668.02,0.00039178,4]
[311144597,1704930647971,-597.83495106,0.00039178,4]
[311144598,1704930647981,-552.24,0.00039178,4]
[311144599,1704930647992,-1038.02,0.00039178,4]
[311144600,1704930648002,-1139.63,0.00039178,4]
[311144601,1704930648013,-738.06,0.00039178,4]
[311144602,1704930648023,-1635.48,0.00039178,4]
[311144603,1704930648032,-1042.56,0.00039178,4]
[311144604,1704930648042,-500.0,0.00039254,2]
[311144605,1704930648052,-200.0,0.00039254,20]
[311144606,1704930648061,-800.0,0.00039254,10]
[311144607,1704930648071,-1000.0,0.0003926,2]
[311144608,1704930648080,-424.5,0.00039292,2]
[311144609,1704930648090,-1000.0,0.00039301,2]
[311144610,1704930648099,-150.0,0.00039366,2]
[311144611,1704930648109,-176.46,0.00039444,2]
[311144612,1704930648119,-500.0,0.00039452,4]
[311144613,1704930648128,-500.0,0.00039452,4]
[311144614,1704930648138,-500.0,0.00039452,4]
[311144615,1704930648148,-500.0,0.00039452,7]
[311144616,1704930648157,-516.93,0.00039452,4]
[311144617,1704930648166,-500.0,0.00039452,2]
[311144618,1704930648175,-500.0,0.00039452,4]
[311144619,1704930648184,-500.0,0.00039452,4]
[311144620,1704930648195,-685.92,0.00039452,4]
[311144621,1704930648205,-500.0,0.00039452,2]
[311144622,1704930648214,-500.0,0.00039452,4]
[311144623,1704930648223,-500.0,0.00039452,4]
[311144624,1704930648233,-500.0,0.00039452,4]
[311144625,1704930648243,-500.0,0.00039452,4]
[311144626,1704930648253,-500.0,0.00039452,4]
[311144627,1704930648263,-399.287883,0.00039452,4]
[311144628,1704930648272,-688.82,0.00039452,4]
[311144629,1704930648281,-721.23,0.00039452,4]
[311144630,1704930648291,-524.91,0.00039452,2]
[311144631,1704930648301,-500.0,0.00039452,4]
[311144632,1704930648310,-500.0,0.00039452,4]
[311144634,1704930648320,-500.0,0.00039452,4]
[311144636,1704930648330,-500.0,0.00039452,4]
[311144638,1704930648341,-699.67,0.00039452,4]
[311144640,1704930648351,-500.0,0.00039452,4]
[311144642,1704930648361,-500.0,0.00039452,4]
[311144644,1704930648370,-554.25,0.00039452,4]
[311144646,1704930648379,-500.0,0.00039452,4]
[311144648,1704930648388,-500.0,0.00039452,4]
[311144650,1704930648397,-500.0,0.00039452,4]
[311144652,1704930648407,-557.24,0.00039452,4]
[311144653,1704930648416,-544.66,0.00039452,4]
[311144655,1704930648426,-500.0,0.00039452,4]
[311144657,1704930648436,-500.0,0.00039452,4]
[311144659,1704930648448,-500.0,0.00039452,4]
[311144662,1704930648457,-500.0,0.00039452,4]
[311144664,1704930648467,-1352.01,0.00039452,4]
[311144666,1704930648476,-500.0,0.00039452,4]
[311144668,1704930648485,-500.0,0.00039452,4]
[311144670,1704930648494,-980.16,0.00039452,4]
[311144672,1704930648505,-500.0,0.00039452,4]
[311144673,1704930648514,-500.0,0.00039452,4]
[311144675,1704930648523,-500.0,0.00039452,4]
[311144677,1704930648532,-500.0,0.00039452,4]
[311144679,1704930648542,-500.0,0.00039452,4]
[311144681,1704930648551,-500.0,0.00039452,4]
[311144684,1704930648560,-1117.31,0.00039452,4]
[311144685,1704930648569,-500.0,0.00039452,4]
[311144688,1704930648579,-758.69,0.00039452,4]
[311144690,1704930648588,-507.48,0.00039452,4]
[311144692,1704930648598,-506.09,0.00039452,4]
[311144694,1704930648607,-532.71,0.00039452,4]
[311144696,1704930648616,-746.81,0.00039452,4]
[311144698,1704930648625,-500.0,0.00039452,4]
[311144700,1704930648634,-461.59,0.00039452,4]
[311144702,1704930648643,-584.0,0.00039452,4]
[311144704,1704930648652,-818.52,0.00039452,4]
[311144706,1704930648662,-500.0,0.00039452,4]
[311144708,1704930648671,-500.0,0.00039452,4]
[311144710,1704930648680,-544.62,0.00039452,4]
[311144724,1704930648807,-701.9,0.00039452,4]
[311144725,1704930648839,-1156.27,0.00039452,4]
[311144726,1704930648849,-500.0,0.00039452,4]
[311144727,1704930648859,-500.0,0.00039452,4]
[311144728,1704930648868,-969.46,0.00039452,4]
[311144729,1704930648877,-1923.82,0.00039452,4]
[311144730,1704930648887,-535.15,0.00039452,4]
[311144731,1704930648897,-500.0,0.00039452,4]
[311144732,1704930648907,-500.0,0.00039452,4]
[311144733,1704930648917,-500.0,0.00039452,4]
[311144734,1704930648927,-500.0,0.00039452,4]
[311144736,1704930648937,-522.94,0.00039452,4]
[311144738,1704930648951,-500.0,0.00039452,4]
[311144740,1704930648961,-1192.59,0.00039452,4]
[311144742,1704930648971,-500.0,0.00039452,4]
[311144743,1704930648981,-669.83,0.00039452,4]
[311144745,1704930648990,-500.0,0.00039452,4]
[311144746,1704930649000,-500.0,0.00039452,4]
[311144747,1704930649011,-500.0,0.00039452,4]
[311144748,1704930649020,-695.51,0.00039452,4]
[311144749,1704930649032,-500.0,0.00039452,4]
[311144750,1704930649044,-500.0,0.00039452,4]
[311144751,1704930649054,-500.0,0.00039452,5]
[311144752,1704930649064,-500.0,0.00039452,4]
[311144753,1704930649074,-500.0,0.00039452,4]
[311144754,1704930649083,-500.0,0.00039452,4]
[311144755,1704930649093,-668.02,0.00039452,4]
[311144756,1704930649103,-552.24,0.00039452,4]
[311144757,1704930649113,-1038.02,0.00039452,4]
[311144758,1704930649123,-1139.63,0.00039452,4]
[311144759,1704930649133,-738.06,0.00039452,4]
[311144760,1704930649142,-1635.48,0.00039452,4]
[311144761,1704930649152,-217.0,0.0003947,2]
[311144762,1704930649161,-210.0,0.0003947,2]
[311144763,1704930649171,-158.66539268,0.00039474,2]
[311144764,1704930649181,-308.62,0.000395,3]
[311144765,1704930649191,-308.62,0.000395,3]
[311144766,1704930649205,-308.62,0.000395,3]
[311144767,1704930649215,-308.62,0.000395,3]
[311144768,1704930649224,-308.62,0.000395,3]
[311144769,1704930649233,-308.62,0.000395,3]
[311144770,1704930649242,-308.62,0.000395,3]
[311144772,1704930649251,-308.62,0.000395,3]
[311144773,1704930649260,-308.62,0.000395,3]
[311144774,1704930649269,-308.62,0.000395,3]
[311144776,1704930649278,-308.62,0.000395,3]
[311144777,1704930649287,-308.62,0.000395,3]
[311144778,1704930649296,-308.62,0.000395,3]
[311144779,1704930649306,-308.62,0.000395,3]
[311144780,1704930649315,-308.62,0.000395,3]
[311144781,1704930649324,-308.62,0.000395,3]
[311144782,1704930649333,-308.62,0.000395,3]
[311144783,1704930649343,-308.62,0.000395,3]
[311144784,1704930649352,-308.62,0.000395,3]
[311144785,1704930649361,-308.62,0.000395,3]
[311144786,1704930649370,-153.72803979,0.00039509,7]
[311144787,1704930649380,-150.99155862,0.00039598,5]
[311144788,1704930649388,-2000.0,0.000396,2]
[311144789,1704930649398,-1000.0,0.00039608,2]
[311144790,1704930649407,-1091.01,0.0003963,2]
[311144791,1704930649417,-185.92843094,0.00039657,13]
[311144792,1704930649427,-3333.40111,0.00039698,8]
[311144793,1704930649437,-8000.0,0.000397,2]
[311144794,1704930649450,-500.0,0.00039726,4]
[311144795,1704930649459,-159.94,0.00039726,4]
[311144796,1704930649468,-500.0,0.00039726,4]
[311144797,1704930649477,-500.0,0.00039726,7]
[311144798,1704930649487,-153.23445319,0.00039726,2]
[311144799,1704930649496,-500.0,0.00039726,4]
[311144800,1704930649505,-500.0,0.00039726,4]
[311144801,1704930649515,-685.92,0.00039726,4]
[311144802,1704930649524,-486.53292234,0.00039726,2]
[311144803,1704930649534,-285.46,0.00039726,4]
[311144804,1704930649543,-638.33,0.00039726,4]
[311144805,1704930649552,-500.0,0.00039726,4]
[311144806,1704930649562,-500.0,0.00039726,4]
[311144807,1704930649572,-1000.0,0.00039726,2]
[311144808,1704930649581,-1000.0,0.00039726,2]
[311144809,1704930649590,-731.37748606,0.00039726,2]
[311144810,1704930649600,-449.42,0.00039726,4]
[311144811,1704930649610,-688.82,0.00039726,4]
[311144812,1704930649619,-721.23,0.00039726,4]
[311144813,1704930649629,-524.91,0.00039726,2]
[311144814,1704930649638,-500.0,0.00039726,4]
[311144815,1704930649648,-500.0,0.00039726,4]
[311144816,1704930649658,-500.0,0.00039726,4]
[311144817,1704930649668,-215.42,0.00039726,4]
[311144818,1704930649677,-699.67,0.00039726,4]
[311144819,1704930649687,-500.0,0.00039726,4]
[311144820,1704930649703,-500.0,0.00039726,4]
[311144821,1704930649713,-554.25,0.00039726,4]
[311144822,1704930649722,-500.0,0.00039726,4]
[311144823,1704930649732,-500.0,0.00039726,4]
[311144824,1704930649741,-500.0,0.00039726,4]
[311144825,1704930649751,-557.24,0.00039726,4]
[311144826,1704930649761,-544.66,0.00039726,4]
[311144827,1704930649770,-500.0,0.00039726,4]
[311144828,1704930649780,-500.0,0.00039726,4]
[311144829,1704930649790,-500.0,0.00039726,4]
[311144830,1704930649800,-500.0,0.00039726,4]
[311144831,1704930649810,-1352.01,0.00039726,4]
[311144832,1704930649821,-500.0,0.00039726,4]
[311144833,1704930649835,-500.0,0.00039726,4]
[311144834,1704930649854,-980.16,0.00039726,4]
[311144835,1704930649878,-500.0,0.00039726,4]
[311144836,1704930649900,-500.0,0.00039726,4]
[311144837,1704930649921,-500.0,0.00039726,4]
[311144838,1704930649942,-500.0,0.00039726,4]
[311144839,1704930649968,-500.0,0.00039726,4]
[311144840,1704930649992,-500.0,0.00039726,4]
[311144841,1704930650011,-1117.31,0.00039726,4]
[311144842,1704930650021,-500.0,0.00039726,4]
[311144843,1704930650031,-758.69,0.00039726,4]
[311144844,1704930650042,-507.48,0.00039726,4]
[311144845,1704930650053,-532.71,0.00039726,4]
[311144846,1704930650065,-506.09,0.00039726,4]
[311144847,1704930650077,-746.81,0.00039726,4]
[311144848,1704930650088,-500.0,0.00039726,4]
[311144849,1704930650098,-584.0,0.00039726,4]
[311144850,1704930650109,-818.52,0.00039726,4]
[311144851,1704930650119,-500.0,0.00039726,4]
[311144852,1704930650130,-500.0,0.00039726,4]
[311144853,1704930650141,-544.62,0.00039726,4]
[311144854,1704930650152,-701.9,0.00039726,4]
[311144855,1704930650164,-1156.27,0.00039726,4]
[311144856,1704930650177,-500.0,0.00039726,4]
[311144857,1704930650188,-500.0,0.00039726,4]
[311144858,1704930650203,-969.46,0.00039726,4]
[311144859,1704930650215,-1923.82,0.00039726,4]
[311144860,1704930650226,-535.15,0.00039726,4]
[311144861,1704930650236,-500.0,0.00039726,4]
[311144862,1704930650246,-500.0,0.00039726,4]
[311144863,1704930650256,-179.0,0.00039726,4]
[311144864,1704930650266,-500.0,0.00039726,4]
[311144865,1704930650276,-522.94,0.00039726,4]
[311144866,1704930650286,-500.0,0.00039726,4]
[311144867,1704930650297,-1192.59,0.00039726,4]
[311144868,1704930650307,-631.78,0.00039726,4]
[311144869,1704930650316,-669.83,0.00039726,4]
[311144870,1704930650327,-500.0,0.00039726,4]
[311144871,1704930650337,-500.0,0.00039726,4]
[311144872,1704930650350,-500.0,0.00039726,4]
[311144873,1704930650360,-695.51,0.00039726,4]
[311144874,1704930650371,-500.0,0.00039726,4]
[311144875,1704930650381,-500.0,0.00039726,4]
[311144876,1704930650391,-500.0,0.00039726,5]
[311144877,1704930650401,-380.86,0.00039726,4]
[311144878,1704930650410,-253.09,0.00039726,4]
[311144879,1704930650420,-150.78,0.00039726,4]
[311144880,1704930650430,-668.02,0.00039726,4]
[311144881,1704930650439,-552.24,0.00039726,4]
[311144882,1704930650452,-1038.02,0.00039726,4]
[311144883,1704930650462,-1139.63,0.00039726,4]
[311144884,1704930650472,-738.06,0.00039726,4]
[311144885,1704930650482,-1635.48,0.00039726,4]
[311144886,1704930650491,-500.0,0.00039741,2]
[311144887,1704930650500,-176.46,0.00039787,2]
[311144888,1704930650510,-205.0,0.00039793,2]
[311144889,1704930650520,-3333.40111,0.00039798,8]
[311144890,1704930650529,-153.84,0.00039853,2]
[311144891,1704930650538,-3333.40111,0.00039898,8]
[311144892,1704930650548,-350.00008253,0.000399,4]
[311144893,1704930650557,-3000.0,0.000399,24]
[311144894,1704930650567,-175.522759,0.000399,2]
[311144895,1704930650576,-5850.000001,0.0003991,24]
[311144896,1704930650586,-2655.0,0.0003999,3]
[311144897,1704930650595,-682.03350113,0.00039997,2]
[311144898,1704930650605,-3333.40111,0.00039998,8]
[311144899,1704930650614,-100000.0,0.0004,7]
[311144900,1704930650624,-33246.8639621,0.0004,4]
[311144901,1704930650633,-487367.65543971,0.0004,15]
[311144902,1704930650642,-161.1953387,0.0004,2]
[311144903,1704930650652,-1500.0,0.0004,4]
[311144904,1704930650661,-227.05823902,0.0004,10]
[311144905,1704930650670,-260.71823019,0.0004,3]
[311144906,1704930650680,-4093.62,0.0004,7]
[311144907,1704930650689,-170.25322318,0.0004,12]
[311144908,1704930650703,-168.0,0.0004,30]
[311144909,1704930650712,-175.0,0.0004,14]
[311144910,1704930650722,-483.0,0.0004,30]
[311144911,1704930650731,-500.0,0.0004,4]
[311144912,1704930650741,-500.0,0.0004,4]
[311144913,1704930650750,-500.0,0.0004,7]